Cogmind - Beta 14 @@@ ROGUE MODE // 2024.11.23 @ 09:21:02 Player: Fangrelle Result: Self-destructed Performance ------------- Evolutions (2) 1000 Regions Visited (4) 800 Robots Destroyed (36) 180 Value Destroyed (1062) 1062 Prototype IDs (2) 40 Alien Tech Used (0) 0 Bonus (0) 0 TOTAL SCORE: 3082 Bonus ------- None Cogmind --------- Core Integrity 522/550 Matter 69/300 Energy 100/100 System Corruption 0% Temperature Cool (0) Movement Walking (470) Ox5 Location -8/Materials Parts ------- > --- POWER (1) -------- (None) > --- PROPULSION (2) --- Carbon-fiber Leg Carbon-fiber Leg > --- UTILITY (6) ------ Improved Heat Sink Cargo Storage Unit Hardened Medium Armor Plating > --- WEAPON (2) ------- Autogun > --- INVENTORY (30) --- Subdweller Power Source Light Treads Carbon-fiber Leg Disposable Heat Sink High-capacity Storage Unit High-capacity Storage Unit Structural Scanner Riot Gun Small Laser Battle Rifle Barrage Gun Grenade Launcher Grenade Launcher Grenade Launcher Grenade Launcher Mining Laser Mining Laser Mining Claw Makeshift Spear Stasis Trap (100%) Stasis Trap (100%) Peak State ------------ > --- POWER ------------ Subdweller Power Source > --- PROPULSION ------- Carbon-fiber Leg Carbon-fiber Leg > --- UTILITY ---------- Improved Heat Sink Cargo Storage Unit Hardened Medium Armor Plating Cobbler Unit > --- WEAPON ----------- Autogun Barrage Gun > --- INVENTORY -------- Subdweller Power Source Light Treads Disposable Heat Sink High-capacity Storage Unit High-capacity Storage Unit Structural Scanner Riot Gun Small Laser Battle Rifle Barrage Gun Grenade Launcher Grenade Launcher Grenade Launcher Grenade Launcher Mining Laser Mining Laser Mining Claw Makeshift Spear Stasis Trap Stasis Trap [Rating: 28] Favorites ----------- Power Ion Engine Engine Ion Engine Propulsion Light Treads Treads Light Treads Leg Carbon-fiber Leg Wheel Wheel Utility High-capacity Storage Unit Device Improved Terrain Scanner Storage High-capacity Storage Unit Protection Propulsion Shielding Weapon Light Cannon Energy Cannon Subdweller Beam Cannon Ballistic Gun Assault Rifle Ballistic Cannon Light Cannon Launcher Grenade Launcher Special Weapon Mining Laser Build | -11 -10 -10 -10 -8 ------- Run | Yrd Mat Min Sub Mat Slots Evolved 4 | . . . . 4 Power . | . . . . . Propulsion . | . . . . . Utility 4 | . . . . 4 Weapon . | . . . . . Parts Attached 34 | . 10 3 13 8 Power 4 | . . 1 3 . Engine 4 | . . 1 3 . Core . | . . . . . Reactor . | . . . . . Propulsion 8 | . 2 1 2 3 Treads 3 | . 2 . . 1 Leg 2 | . . . . 2 Wheel 3 | . . 1 2 . Hover . | . . . . . Flight . | . . . . . Utility 9 | . 4 . 1 4 Device 3 | . . . 1 2 Storage 2 | . 1 . . 1 Processor . | . . . . . Hackware . | . . . . . Protection 4 | . 3 . . 1 Artifact . | . . . . . Weapon 13 | . 4 1 7 1 Energy Gun . | . . . . . Energy Cannon 2 | . . . 2 . Ballistic Gun 5 | . . 1 3 1 Ballistic Cannon 4 | . 3 . 1 . Launcher 1 | . . . 1 . Special Weapon 1 | . 1 . . . Impact Weapon . | . . . . . Slashing Weapon . | . . . . . Piercing Weapon . | . . . . . Special Melee Weapon . | . . . . . Unidentified Prototypes . | . . . . . Parts Lost 16 | . 1 4 8 3 Power 4 | . . 2 1 1 Propulsion 3 | . . 1 2 . Utility 3 | . 1 . 1 1 Weapon 6 | . . 1 4 1 Highest Loss Streak 8 | . 1 3 8 3 To Critical Strikes . | . . . . . Average Slot Usage (%) 94 | . 98 94 93 80 Engine 11 | . 14 10 11 9 Treads 18 | . 27 24 1 1 Wheel 7 | . . 2 23 10 Device 4 | . . . 11 23 Storage 13 | . 14 14 14 9 Protection 9 | . 12 14 1 3 Ballistic Gun 14 | . 17 3 24 17 Ballistic Cannon 11 | . 6 24 1 . Special Weapon 1 | . 3 . . . Peak Build Rating 28 | 7 9 9 15 28 Average Rating 10 | 6 8 8 12 24 On Entrance 8 | 6 7 9 8 14 Naked Turns . | . . . . . Heaviest Build 172 | 14 53 52 57 172 Greatest Support 40 | 20 40 40 20 30 Greatest Overweight (x) 17 | . 1 2 14 17 Average Overweight (x) 1 | . . 1 2 8 Largest Inventory Capacity 30 | 8 20 20 20 30 Average Capacity 19 | 8 18 20 20 29 Most Carried 21 | 8 19 20 20 21 Average Carried 17 | 6 14 18 19 18 Final Capacity 30 | 8 20 20 20 30 Final Carried 21 | 8 17 19 19 21 Class Distribution -------------------- 75% | Mutant 20% | Scavenger-Mutant 4% | Hauler-Mutant Dominant Class ---------------- Mutant | -10/Materials Mutant | -10/Mines Scavenger-Mutant | -10/Subcaves Hauler-Mutant | -8/Materials Resources | -11 -10 -10 -10 -8 ----------- Run | Yrd Mat Min Sub Mat Matter Collected 1215 | 219 185 413 339 59 Remotely . | . . . . . Salvage Created 1089 | 24 352 276 378 59 Parts 69 | 3 20 18 26 2 Haulers Intercepted . | . . . . . Recyclers Shooed 1 | 1 . . . . Parts Field Recycled . | . . . . . Retrieved Matter . | . . . . . Parts Self-Destructed 18 | . . . 18 . Prevented . | . . . . . Kills | -11 -10 -10 -10 -8 ------- Run | Yrd Mat Min Sub Mat Combat Hostiles Destroyed 30 | . 8 10 11 1 Guns 14 | . 6 1 6 1 Cannons 12 | . 2 9 1 . AOE 3 | . . . 3 . Classes Destroyed 9 | 1 3 2 2 1 Worker 1 | . 1 . . . Tunneler 2 | 1 . 1 . . Recycler 1 | . . 1 . . Watcher 2 | . 2 . . . Swarmer 7 | . . 4 3 . Grunt 14 | . 8 6 . . Sentry 1 | . . . . 1 Cobbler 1 | . . . 1 . Subdweller 8 | . . . 8 . Best Kill Streak 5 | 1 3 5 5 1 Combat Bots Only 5 | . 2 4 5 1 Max Kills in Single Turn 2 | 1 1 2 1 1 Gunslinging . | . . . . . Exploded 1 | . . . 1 . Melee . | . . . . . Uniques/NPCs Destroyed . | . . . . . Combat | -11 -10 -10 -10 -8 -------- Run | Yrd Mat Min Sub Mat Hostile Shots Fired 209 | . 58 60 40 51 Missed 56 | . 18 17 12 9 Damage Taken 2320 | . 524 553 600 643 Core 247 | . 62 74 83 28 Absorbed by Shields . | . . . . . Redirected to Shielding 57 | . 3 46 8 . Regen/Repaired (Parts) 84 | . 84 . . . Core Remaining (%) 56 | 100 . . 12 . Volleys Fired 148 | 11 56 35 39 7 Largest 2 | 2 2 2 2 2 Hottest 108 | 40 100 70 108 51 Shots Fired 260 | 22 101 64 61 12 Gun 143 | 22 65 10 34 12 Cannon 101 | . 25 54 22 . Launcher 5 | . . . 5 . Special 11 | . 11 . . . Kinetic 225 | 22 90 64 37 12 Thermal 30 | . 11 . 19 . Explosive 5 | . . . 5 . Electromagnetic . | . . . . . Robot Hit Streak 11 | 3 7 11 11 4 Robot Miss Streak 4 | 4 3 2 3 4 Penetration Max . | . . . . . Secondary Targets . | . . . . . Shots Hit Robots 144 | 9 54 44 31 6 Core Hits 56 | 1 20 16 16 3 Critical Kills 2 | . . . 2 . Critical Parts Destroyed 3 | . 2 . 1 . Critical Strikes 6 | . 2 1 3 . Meltdown 1 | . . . 1 . Destroy 4 | . 2 . 2 . Blast 1 | . . 1 . . Melee Attacks . | . . . . . Impact . | . . . . . Slashing . | . . . . . Piercing . | . . . . . Sneak Attacks . | . . . . . Combat Hostiles . | . . . . . Follow-up Attacks . | . . . . . Damage Inflicted 2436 | 89 745 786 679 137 Guns 1055 | 89 445 81 320 120 Cannons 1122 | . 300 705 117 . Explosions 242 | . . . 242 . Melee . | . . . . . Ramming 17 | . . . . 17 Kinetic 2077 | 89 745 786 337 120 Thermal 100 | . . . 100 . Explosive 242 | . . . 242 . Electromagnetic . | . . . . . Impact . | . . . . . Slashing . | . . . . . Piercing . | . . . . . Highest Corruption . | . . . . . Average Corruption . | . . . . . Corruption Purged . | . . . . . Corruption Blocked . | . . . . . Overload Shots . | . . . . . Overflow Damage 4 | . . 4 . . Projectiles 4 | . . 4 . . Explosions . | . . . . . Melee . | . . . . . Knockbacks 12 | . 3 9 . . Impact . | . . . . . Kinetic 10 | . 3 7 . . Secondary 2 | . . 2 . . Self-Inflicted Damage . | . . . . . Shots . | . . . . . Rammed . | . . . . . Targets Rammed 1 | . . . . 1 Kicked 1 | . . . . 1 Crushed . | . . . . . Highest Temperature 120 | 6 111 120 28 4 Average Temperature 35 | 6 28 48 21 2 Received Heat Transfer 1161 | . 318 300 39 504 Siege Activations . | . . . . . Robots Corrupted . | . . . . . Combat Hostiles . | . . . . . Parts Fried . | . . . . . Impact Corruptions . | . . . . . Robots Melted 1 | . . . 1 . Combat Hostiles 1 | . . . 1 . Parts Melted 2 | . . . 2 . Heat Transferred 185 | . . . 185 . Parts Sabotaged . | . . . . . Parts Stolen . | . . . . . Parts Stripped . | . . . . . Power Chain Reactions . | . . . . . Alert | -11 -10 -10 -10 -8 ------- Run | Yrd Mat Min Sub Mat Peak Influence 170 | 5 170 145 . 41 Initial 11 | . 3 5 . 11 Average 40 | 2 51 33 . 26 Maximum Alert Level . | . . . . . Low Security (%) 100 | 100 100 100 . 100 Level 1 . | . . . . . Level 2 . | . . . . . Level 3 . | . . . . . Level 4 . | . . . . . Level 5 . | . . . . . High Security . | . . . . . Max Security . | . . . . . Squads Dispatched 2 | . 2 . . . Investigation 2 | . 2 . . . Extermination . | . . . . . Reinforcement . | . . . . . Assault . | . . . . . Garrison . | . . . . . Intercept . | . . . . . Searches Triggered . | . . . . . Construction Impeded . | . . . . . Haulers Reinforced . | . . . . . Active Scanning Responses . | . . . . . Cargo Convoy Interrupts . | . . . . . Stealth | -11 -10 -10 -10 -8 --------- Run | Yrd Mat Min Sub Mat Distress Signals 2 | . 1 . . 1 Communications Jammed . | . . . . . Distress Signals . | . . . . . Times Spotted 45 | . 14 11 16 4 Peak Tracking Total 5 | . 4 5 5 2 Tactical Retreats 6 | . 1 2 3 . Traps | -11 -10 -10 -10 -8 ------- Run | Yrd Mat Min Sub Mat Traps Triggered . | . . . . . Indirectly . | . . . . . Trap Hack Attempts . | . . . . . Triggered . | . . . . . Disarmed . | . . . . . Reprogrammed . | . . . . . Reused . | . . . . . Traps Extracted . | . . . . . Installed 1 | . . 1 . . Triggered 1 | . . . 1 . Most Traps Carried 3 | . . 3 2 2 Machines | -11 -10 -10 -10 -8 ---------- Run | Yrd Mat Min Sub Mat Machines Disabled 2 | . 2 . . . Max in Single Turn 1 | . 1 . . . Machines Repaired . | . . . . . Machines Dismantled . | . . . . . Machines Sabotaged . | . . . . . Overloaded Fab Kills . | . . . . . Hacking | -11 -10 -10 -10 -8 --------- Run | Yrd Mat Min Sub Mat Machines Accessed 13 | . 11 1 . 1 Terminals 9 | . 8 1 . . Fabricators . | . . . . . Repair Stations 1 | . 1 . . . Recycling Units 3 | . 2 . . 1 Scanalyzers . | . . . . . Garrison Access . | . . . . . Total Hacks 34 | . 31 2 . 1 Successful 25 | . 22 2 . 1 Failed 8 | . 8 . . . Catastrophic . | . . . . . Database Lockouts 1 | . 1 . . . Manual 28 | . 26 2 . . Terminals 27 | . 25 2 . . Fabricators . | . . . . . Repair Stations 2 | . 2 . . . Recycling Units 5 | . 4 . . 1 Scanalyzers . | . . . . . Garrison Access . | . . . . . Terminal Hacks 6 | . 4 2 . . Robot Analysis 3 | . 1 2 . . Prototype ID Bank 1 | . 1 . . . Terminal Index 1 | . 1 . . . Alert Level 1 | . 1 . . . Fabricator Hacks . | . . . . . Repair Station Hacks 2 | . 2 . . . Scan Component 1 | . 1 . . . Repair 1 | . 1 . . . Recycling Unit Hacks 3 | . 2 . . 1 Retrieve Matter 1 | . . . . 1 Retrieve Components 2 | . 2 . . . Scanalyzer . | . . . . . Garrison Access Hacks . | . . . . . Unauthorized Hacks 14 | . 14 . . . Terminals 12 | . 12 . . . Assimilate 6 | . 6 . . . Botnet 4 | . 4 . . . Operators 1 | . 1 . . . Skim 1 | . 1 . . . Fabricators . | . . . . . Repair Stations . | . . . . . Recycling Units 2 | . 2 . . . Tunnel 2 | . 2 . . . Scanalyzers . | . . . . . Garrison Access . | . . . . . Data Cores Recovered . | . . . . . Used . | . . . . . Hacking Detections 11 | . 10 1 . . Full Trace Events . | . . . . . Feedback Events . | . . . . . Feedback Blocked . | . . . . . Robot Schematics Acquired . | . . . . . Robots Built . | . . . . . Authchips . | . . . . . Time . | . . . . . Total Robot Build Rating . | . . . . . Part Schematics Acquired . | . . . . . Parts Built . | . . . . . Authchips . | . . . . . Time . | . . . . . Total Part Build Rating . | . . . . . Parts Repaired 1 | . 1 . . . Time 26 | . 26 . . . Parts Recycled . | . . . . . Recycled Matter . | . . . . . Retrieved Matter . | . . . . . Retrieved Components 10 | . 10 . . . Parts Scanalyzed . | . . . . . Part Schematics Acquired . | . . . . . Parts Damaged . | . . . . . Bothacking | -11 -10 -10 -10 -8 ------------ Run | Yrd Mat Min Sub Mat Used RIF Installer . | . . . . . Robots Hacked . | . . . . . Non-combat . | . . . . . Combat . | . . . . . Robot Hacks Applied . | . . . . . Relay Couplers Released . | . . . . . Fabnet Peak Effective % . | . . . . . Robots Rewired . | . . . . . Allies Hacked . | . . . . . Hacks Repelled . | . . . . . Allies | -11 -10 -10 -10 -8 -------- Run | Yrd Mat Min Sub Mat Total Allies 1 | . 1 . . . Largest Group 1 | . 1 1 1 1 Highest-Rated Group 10 | . 10 10 10 10 Highest-Rated Ally 10 | . 10 10 10 10 Total Orders 5 | . . 2 2 1 STAY 3 | . . 1 1 1 FOLLOW 2 | . . 1 1 . Ally Attacks . | . . . . . Total Damage . | . . . . . Kills . | . . . . . Allies Corrupted . | . . . . . Allies Melted . | . . . . . Intel | -11 -10 -10 -10 -8 ------- Run | Yrd Mat Min Sub Mat Robot Analysis Total 2 | . 1 1 . . Derelict Logs Recovered 4 | . . 2 2 . Drone Launches . | . . . . . Drone Recoveries . | . . . . . Exploration | -11 -10 -10 -10 -8 ------------- Run | Yrd Mat Min Sub Mat Turns Passed 5025 | 48 1680 1751 1335 211 Spaces Moved 2347 | 11 620 741 912 63 Core 9 | . . . 9 . Treads 1146 | . 620 526 . . Legs 22 | 11 . . . 11 Wheels 1170 | . . 215 903 52 Hover . | . . . . . Flight . | . . . . . Fastest Speed 110 | 120 160 130 110 200 Average Speed 181 | 120 223 213 121 268 Slowest Speed 890 | 120 240 320 750 890 Overloaded Moves . | . . . . . Propulsion Burnouts . | . . . . . Robots Hopped . | . . . . . Cave-ins Triggered . | . . . . . Exploration Rate (%) 46 | 3 80 100 45 6 Regions Visited 4 Branch Regions 2 Pre-discovered Areas 5 | . 2 2 1 . Known Exits Taken . | . . . . . Unknown Exits Taken 4 | 1 1 1 1 . Scrap Searched 1 | . . 1 . . Spaces Dug 10 | . 10 . . . Terrain Destroyed 33 | . 11 . 22 . Melee . | . . . . . Projectile 11 | . 11 . . . AOE 22 | . . . 22 . Terrain Rammed . | . . . . . Walls Destroyed . | . . . . . Machines Disabled . | . . . . . Actions | -11 -10 -10 -10 -8 --------- Run | Yrd Mat Min Sub Mat Total 2836 | 23 793 849 1079 92 Wait 259 | . 85 63 107 4 Move 2343 | 10 619 740 911 63 Hop . | . . . . . Pick Up 29 | 2 13 6 5 3 Fast Attach 12 | . 4 . 5 3 Attach 17 | . 4 3 5 5 Detach 6 | . 3 . 1 2 Swap 5 | . 2 . 3 . Drop 15 | . 7 1 3 4 Fire 148 | 11 56 35 39 7 Melee . | . . . . . Ram . | . . . . . Kick 1 | . . . . 1 Crush . | . . . . . Escape Stasis . | . . . . . Rewire . | . . . . . Trap 1 | . . 1 . . Miscellaneous . | . . . . . Route ------- -11/Scrapyard -10/Materials (discovered 3 exits: [*Mat x2] / *Min) -10/Mines (discovered 3 exits: [*Mat x2] / [*Sub]) -10/Subcaves -8/Materials (discovered 2 exits: Fac / Sto) History --------- Turn | Location | Event 35 | -11/Scrapyard | Discovered new exit (range 3) 49 | -11/Scrapyard | Entered Materials 309 | -10/Materials | Build established: Mutant 409 | -10/Materials | Repaired Lgt. Armor Plating 487 | -10/Materials | Discovered new exit (range 7) 1376 | -10/Materials | Discovered new exit (range 8) 1498 | -10/Materials | Discovered new exit (range 7) 1640 | -10/Materials | Central database locked down 1729 | -10/Materials | Entered Mines 1729 | -10/Mines | Accompanied by 1 ally 1793 | -10/Mines | Found a hidden stash of uninstalled traps 2048 | -10/Mines | Learned location of Recycling (-8) 2157 | -10/Mines | Learned 2 Materials zone layouts 2184 | -10/Mines | Discovered new exit (range 15) 2354 | -10/Mines | Discovered new exit (range 12) 2643 | -10/Mines | Learned location of Storage (-8) 3017 | -10/Mines | Core integrity fell below 50% 3035 | -10/Mines | Lost 3 parts (1p1n1w) 3396 | -10/Mines | Discovered new exit (range 6) 3480 | -10/Mines | Entered Subcaves 3480 | -10/Subcaves | Accompanied by 1 ally 3487 | -10/Subcaves | A swath of the cavern ceiling suddenly collapsed 3670 | -10/Subcaves | Lost 8 parts (1p2n1u4w) 3809 | -10/Subcaves | Ambushed by angry Subdweller bent on revenge 3822 | -10/Subcaves | Discovered new exit (range 9) 3926 | -10/Subcaves | Learned 2 Materials zone layouts 3971 | -10/Subcaves | Learned Materials garrison access intel 4117 | -10/Subcaves | Build established: Scavenger-Mutant 4178 | -10/Subcaves | Shifting Twisted Machinery released Sub. Beam Cannon 4184 | -10/Subcaves | Shifting Twisted Machinery released Battle Rifle 4317 | -10/Subcaves | Learned location of Zion (-6) 4317 | -10/Subcaves | Met a Zionite searching for "candidates" 4496 | -10/Subcaves | Core integrity fell below 20% 4815 | -10/Subcaves | Entered Materials 4815 | -8/Materials | Accompanied by 1 ally 4815 | -8/Materials | Evolved 4 slots: Utility x4 4816 | -8/Materials | Identified exit to Factory 4816 | -8/Materials | Identified exit to Storage 4817 | -8/Materials | Loaded intel: 1 garrison access location 5026 | -8/Materials | Self-destructed Last Messages --------------- 04926_ Acquired Lgt. Treads. 04926_ R-06 Scavenger collects Lgt. Armor Plating. 04930_ Acquired Hrd. Medium Armor Plating. 04930_ R-06 Scavenger collects Wheel. 04931_ Dropped Imp. Terrain Scanner. 04931_ R-06 Scavenger collects Imp. Terrain Scanner. 04941_ Cobbler Unit puts together Mak. Spear. 04953_ Dropped Wheel. 04954_ Acquired Carbon-fiber Leg. 04955_ R-06 Scavenger collects Wheel. 04964_ Acquired Carbon-fiber Leg. 04979_ Critical hit (Burn: +37). 05013_ Connecting with Recycling Unit... 05013_ Current location identified: Materials 05013_ Kicked G-47 Trooper out of the way. 05017_ Barrage Gun destroyed. 05018_ Acquired 59 matter. 05023_ Sub. Power Source destroyed. 05023_ Cobbler Unit destroyed. 05023_ Critical hit (Burn: +37). Map ----- +----------------------------------------------------+ | ## ###########???# ???????????????????????????? | | ?# #????###??????# ???????????????????????????? | | ?# #??### ######?# ???????????????????????????? | | ?# #??# #?# ???????????????????????????? | | ?# #### "#?# ???????????????????????????? | | ?# + "#?# ???????????????????????????? | | ?# #### "#?#####???????????????????????????? | | ?# #??# T#?????????????????????????????????? | | ?# #??# """ "#?????????????????????????????????? | | ?# #??# """ "#?????????????????????????????????? | | ?# #??# """ "#?????????????????????????????????? | | ?# #??# #?????????????????????????????????? | | ?# #??#####+#######??????????????????????????????? | | ## ##### #??????"????????? ?????????????? | | #??????????????????????????????? | | ######## #???? ?????????????????????????? | | ########## #### #??#??????????????#????????????? | | ###+#### #?????? ????????? #????????????? | | # # #?????????????? #????????????? | | # # ############## ! ????????????? | | # " # a ????????????? | | # "" # u ???????????????? | | # "" # ] ?????????????????? | | # """ + #?????????????????????? | | # "" # g #????#? ??????????????? | | ???????#??????# = g@ #????#??????????????+ | | ??????????"???# == ""#???????????????????# | | ????????????"?# Y"#???????????????????# | | ??????????????# ""#??????????????????? | | ??????????????# ] #? ? ??????????????? | | ??????????????# #??????? ??????????? | | ????????????########### ##?? ????????????????#+# | | ?????????#??# # ##?"????#???????????? | | ???????#????# """ # #? ?????????????????? | | ???????????## """"" + #?????????#?????????? | | ????????#???# """"" # #????#??????????????? | | ????????????# """"" # #??????????#????????? | | ??????#?????# """ # ########?????????????" " | | ????????#???# # #? #?????????????" " | | ????????????# [ + # """ #?????????????" " | | ????????????########### # """ ##????????????### | | ??????????????????????# + """ #???????????????? | | ????????????#?????????# # #???????????????? | | ??????????????????????# # [ #??????#????????? | | ??????????????????????# #?######???????????????? | | ????????????????????#?#####??????????????????????? | | ????????#?????#??????????????#???????????????????? | | ????##?#??#???????#????????#?????????????????????? | | ?????????????????????????????????#???????????????? | | ???????????????????????????????????#?????????????? | +----------------------------------------------------+ Best States ------------- Heat Dissipation 45 Energy Generation 15 Energy Capacity 250 Matter Stores 291 Matter Capacity 300 Sight Range 16 Terrain Scan Range 16 Terrain Scan Density 10 Armor Coverage 225 Propulsion Shielding 33 Evasion (%) 55 Recoil Reduction 2 Item Schematics ----------------- None Robot Schematics ------------------ None Fabricated ------------ Nothing Alien Tech Used ----------------- None Achievements -------------- None Challenges ------------ None Game ------ Seed FlyingAlloyClaymores Manual? 0 Play Time 00:29:51 Cumulative 127.7 hours Start 2024.11.23 @ 07:11:06 End 2024.11.23 @ 09:21:02 Sessions 5 Manual Loads 0 Difficulty Rogue Special Mode None Game No. 237 Rogue 237 Adventurer 0 Explorer 0 Win Type - Total 0 Types 0/0/0/0/0/0/0/0/0 Lore% 43 Gallery% 40 Achievement% 36 Wizard Run 0 Options --------- Layout 0 ASCII 0 Keyboard 0 Movement Mouse Keybinds 0 Fullscreen 1 Font 24/Smallcaps Map View 91x25 Zoom Use 76% Tactical HUD 1 Map Filters NONE Filters NONE Steam 1 RUN: 3a395af1-2ebf-4fca-af72-d2760ac5332b